fUSD/lending_fUSD_20250309
["ID","MTS","AMOUNT","RATE_DAILY","PERIOD"]
[355721976,1741504232325,-500.0,8.989e-05,2]
[355721978,1741504232335,-500.0,8.989e-05,2]
[355721980,1741504232344,-500.0,8.989e-05,2]
[355721982,1741504232353,-500.0,8.989e-05,2]
[355721984,1741504232362,-500.0,8.989e-05,2]
[355721986,1741504232371,-500.0,8.989e-05,2]
[355721987,1741504232380,-500.0,8.989e-05,2]
[355721989,1741504232390,-500.0,8.989e-05,2]
[355721990,1741504232399,-500.0,8.989e-05,2]
[355721991,1741504232408,-500.0,8.989e-05,2]
[355721992,1741504232417,-500.0,8.989e-05,2]
[355721993,1741504232426,-500.0,8.989e-05,2]
[355721994,1741504232435,-500.0,8.989e-05,2]
[355721995,1741504232445,-500.0,8.989e-05,2]
[355721996,1741504232454,-500.0,8.989e-05,2]
[355721997,1741504232463,-500.0,8.989e-05,2]
[355721998,1741504232472,-500.0,8.989e-05,2]
[355721999,1741504232481,-500.0,8.989e-05,2]
[355722000,1741504232490,-500.0,8.989e-05,2]
[355722001,1741504232499,-500.0,8.989e-05,2]
[355722002,1741504232509,-500.0,8.989e-05,2]
[355722003,1741504232518,-500.0,8.989e-05,2]
[355722004,1741504232527,-500.0,8.989e-05,2]
[355722005,1741504232536,-500.0,8.989e-05,2]
[355722006,1741504232546,-500.0,8.989e-05,2]
[355722007,1741504232555,-500.0,8.989e-05,2]
[355722008,1741504232564,-500.0,8.989e-05,2]
[355722009,1741504232573,-500.0,8.989e-05,2]
[355722010,1741504232582,-402.89,8.989e-05,2]
[355722011,1741504232591,-500.0,8.989e-05,2]
[355722012,1741504232600,-550.0,8.996e-05,2]
[355722013,1741504232609,-550.0,9.081e-05,2]
[355722014,1741504232618,-1387.797,9.081e-05,2]
[355722015,1741504232627,-538.64153023,9.263e-05,2]
[355722016,1741504232637,-500.0,9.286e-05,2]
[355722017,1741504232646,-500.0,9.286e-05,2]
[355722018,1741504232655,-642.05,9.286e-05,2]
[355722019,1741504232664,-500.0,9.286e-05,2]
[355722020,1741504232673,-1488.96,9.286e-05,2]
[355722021,1741504232682,-1584.958558,9.286e-05,2]
[355722022,1741504232691,-2185.56,9.286e-05,2]
[355722023,1741504232700,-500.0,9.286e-05,2]
[355722024,1741504232709,-514.91293136,9.286e-05,2]
[355722025,1741504232722,-834.98706864,9.286e-05,2]
[355722026,1741504232731,-477.88029802,9.286e-05,2]
[355722029,1741504237568,-677.2500001,9.286e-05,2]
[355722036,1741504240098,-301.02340468,9.286e-05,2]
[355722046,1741504242795,-150.2470872,9.286e-05,2]
[355722047,1741504242805,-645.02,9.286e-05,2]
[355722048,1741504242815,-883.12,9.286e-05,2]
[355722049,1741504242824,-154.229652,9.286e-05,2]
[355722050,1741504242833,-1080.32,9.286e-05,2]
[355722051,1741504242842,-151.883113,9.286e-05,2]
[355722052,1741504242851,-1376.38,9.286e-05,2]
[355722053,1741504242863,-3636.85,9.286e-05,2]
[355722054,1741504242873,-789.67,9.286e-05,2]
[355722055,1741504242886,-600.63,9.286e-05,2]
[355722056,1741504242895,-1877.89,9.286e-05,2]
[355722057,1741504242905,-1078.56,9.286e-05,2]
[355722058,1741504242915,-318.85733877,9.286e-05,2]
[355722059,1741504242927,-181.14266123,9.286e-05,2]
[355722060,1741504242938,-2096.72,9.286e-05,2]
[355722061,1741504242948,-876.29,9.286e-05,2]
[355722062,1741504242957,-491.55812268,9.286e-05,2]
[355722067,1741504244602,-588.40187732,9.286e-05,2]
[355722068,1741504244612,-2212.89808268,9.286e-05,2]
[355722069,1741504244623,-902.67191732,9.286e-05,2]
[355722070,1741504244633,-693.62806768,9.286e-05,2]
[355722071,1741504245628,-98.70193232,9.286e-05,2]
[355722072,1741504245638,-404.6475906,9.286e-05,2]
[355722073,1741504245649,-95.3524094,9.286e-05,2]
[355722074,1741504245659,-861.54,9.286e-05,2]
[355722075,1741504245668,-1040.53,9.286e-05,2]
[355722076,1741504245678,-607.21,9.286e-05,2]
[355722077,1741504245688,-1418.49,9.286e-05,2]
[355722078,1741504245698,-5085.86,9.286e-05,2]
[355722079,1741504245707,-1137.37,9.286e-05,2]
[355722080,1741504245716,-1356.11,9.286e-05,2]
[355722081,1741504245725,-756.94,9.286e-05,2]
[355722082,1741504245735,-1961.11,9.286e-05,2]
[355722083,1741504245744,-500.0,9.286e-05,2]
[355722084,1741504245754,-500.0,9.286e-05,2]
[355722085,1741504245763,-500.0,9.286e-05,2]
[355722086,1741504245773,-696.34,9.286e-05,2]
[355722087,1741504245783,-500.0,9.286e-05,2]
[355722088,1741504245793,-2594.04,9.286e-05,2]
[355722089,1741504245803,-1079.61,9.286e-05,2]
[355722090,1741504245812,-866.74,9.286e-05,2]
[355722091,1741504245822,-500.0,9.286e-05,2]
[355722092,1741504245831,-500.0,9.286e-05,2]
[355722093,1741504245840,-1634.49,9.286e-05,2]
[355722094,1741504245849,-701.89,9.286e-05,2]
[355722095,1741504245860,-500.0,9.286e-05,2]
[355722096,1741504245871,-1806.63,9.286e-05,2]
[355722097,1741504245880,-981.35,9.286e-05,2]
[355722098,1741504245889,-858.06,9.286e-05,2]
[355722099,1741504245898,-2303.5,9.286e-05,2]
[355722100,1741504245909,-573.52,9.286e-05,2]
[355722101,1741504245919,-782.43,9.286e-05,2]
[355722102,1741504245928,-2694.57,9.286e-05,2]
[355722103,1741504245938,-691.06,9.286e-05,2]
[355722104,1741504245948,-2038.26,9.286e-05,2]
[355722105,1741504245959,-605.12,9.286e-05,2]
[355722106,1741504245969,-1131.9,9.286e-05,2]
[355722107,1741504245979,-500.0,9.286e-05,2]
[355722108,1741504245988,-1382.56,9.286e-05,2]
[355722109,1741504245998,-500.0,9.286e-05,2]
[355722110,1741504246007,-500.0,9.286e-05,2]
[355722111,1741504246016,-1023.11,9.286e-05,2]
[355722112,1741504246026,-500.0,9.286e-05,2]
[355722113,1741504246035,-526.93,9.286e-05,2]
[355722114,1741504246045,-1004.49,9.286e-05,2]
[355722115,1741504246055,-500.0,9.286e-05,2]
[355722116,1741504246065,-500.0,9.286e-05,2]
[355722118,1741504246074,-4638.42,9.286e-05,2]
[355722119,1741504246084,-819.88,9.286e-05,2]
[355722120,1741504246093,-509.64,9.286e-05,2]
[355722121,1741504246102,-1275.91,9.286e-05,2]
[355722122,1741504246112,-609.38,9.286e-05,2]
[355722123,1741504246122,-1770.82,9.286e-05,2]
[355722124,1741504246131,-500.0,9.286e-05,2]
[355722125,1741504246140,-1265.79,9.286e-05,2]
[355722126,1741504246149,-500.0,9.286e-05,2]
[355722127,1741504246159,-500.0,9.286e-05,2]
[355722129,1741504246169,-500.0,9.287e-05,7]
[355722130,1741504246179,-500.0,9.287e-05,2]
[355722132,1741504246188,-500.0,9.287e-05,2]
[355722133,1741504246198,-500.0,9.287e-05,2]
[355722134,1741504246207,-500.0,9.287e-05,2]
[355722135,1741504246217,-500.0,9.287e-05,2]
[355722136,1741504246226,-500.0,9.287e-05,2]
[355722137,1741504246235,-500.0,9.287e-05,2]
[355722138,1741504246245,-500.0,9.287e-05,2]
[355722139,1741504246254,-500.0,9.287e-05,2]
[355722140,1741504246263,-518.71200174,9.287e-05,2]
[355722141,1741504246273,-500.0,9.287e-05,2]
[355722142,1741504246283,-500.0,9.287e-05,2]
[355722143,1741504246292,-500.0,9.287e-05,2]
[355722144,1741504246302,-500.0,9.287e-05,2]
[355722145,1741504246312,-500.0,9.287e-05,2]
[355722146,1741504246321,-500.0,9.287e-05,2]
[355722147,1741504246330,-500.0,9.287e-05,2]
[355722148,1741504246340,-500.0,9.287e-05,2]
[355722149,1741504246350,-500.0,9.287e-05,2]
[355722150,1741504246359,-500.0,9.287e-05,2]
[355722151,1741504246369,-500.0,9.287e-05,2]
[355722152,1741504246379,-500.0,9.287e-05,2]
[355722153,1741504246388,-500.0,9.287e-05,2]
[355722154,1741504246398,-582.41632324,9.287e-05,2]
[355722155,1741504246408,-500.0,9.287e-05,2]
[355722156,1741504246417,-500.0,9.287e-05,2]
[355722157,1741504246427,-578.15815089,9.287e-05,2]
[355722158,1741504246436,-500.0,9.287e-05,2]
[355722159,1741504246445,-500.0,9.287e-05,2]
[355722160,1741504246455,-411.8481583,9.287e-05,2]
[355722161,1741504246464,-500.0,9.287e-05,2]
[355722162,1741504246474,-500.0,9.287e-05,2]
[355722163,1741504246484,-500.0,9.287e-05,2]
[355722164,1741504246494,-500.0,9.287e-05,2]
[355722165,1741504246503,-500.0,9.287e-05,2]
[355722166,1741504246513,-500.0,9.287e-05,2]
[355722167,1741504246523,-237.1327252,9.287e-05,2]
[355722168,1741504246533,-500.0,9.287e-05,2]
[355722169,1741504246542,-500.0,9.287e-05,2]
[355722170,1741504246552,-500.0,9.287e-05,2]
[355722171,1741504246561,-500.0,9.287e-05,2]
[355722172,1741504246571,-466.71349569,9.287e-05,2]
[355722173,1741504246580,-500.0,9.287e-05,2]
[355722174,1741504246589,-500.0,9.287e-05,2]
[355722175,1741504246599,-500.0,9.287e-05,2]
[355722176,1741504246608,-500.0,9.287e-05,2]
[355722177,1741504246618,-500.0,9.287e-05,2]
[355722178,1741504246628,-500.0,9.287e-05,2]
[355722179,1741504246638,-500.0,9.287e-05,2]
[355722180,1741504246647,-500.0,9.287e-05,2]
[355722181,1741504246657,-206.62519852,9.287e-05,2]
[355722182,1741504246667,-500.0,9.287e-05,2]
[355722183,1741504246676,-500.0,9.287e-05,2]
[355722184,1741504246686,-500.0,9.287e-05,2]
[355722185,1741504246695,-500.0,9.287e-05,2]
[355722186,1741504246705,-500.0,9.287e-05,2]
[355722187,1741504246715,-500.0,9.287e-05,2]
[355722188,1741504246724,-500.0,9.287e-05,2]
[355722189,1741504246733,-512.85591628,9.287e-05,2]
[355722190,1741504246743,-500.0,9.287e-05,2]
[355722191,1741504246752,-500.0,9.287e-05,2]
[355722192,1741504246762,-500.0,9.287e-05,2]
[355722193,1741504246771,-500.0,9.287e-05,2]
[355722194,1741504246781,-500.0,9.287e-05,2]
[355722195,1741504246791,-500.0,9.287e-05,2]
[355722196,1741504246801,-500.0,9.287e-05,2]
[355722197,1741504246810,-500.0,9.287e-05,2]
[355722198,1741504246820,-500.0,9.287e-05,2]
[355722199,1741504246830,-500.0,9.287e-05,2]
[355722200,1741504246840,-500.0,9.287e-05,2]
[355722201,1741504246849,-500.0,9.287e-05,2]
[355722202,1741504246860,-500.0,9.287e-05,2]
[355722203,1741504246870,-500.0,9.287e-05,2]
[355722204,1741504246879,-500.0,9.287e-05,2]
[355722205,1741504246889,-500.0,9.287e-05,2]
[355722206,1741504246898,-500.0,9.287e-05,2]
[355722207,1741504246910,-500.0,9.287e-05,2]
[355722208,1741504246919,-500.0,9.287e-05,2]
[355722209,1741504246928,-500.0,9.287e-05,2]
[355722210,1741504246940,-500.0,9.287e-05,2]
[355722211,1741504246950,-500.0,9.287e-05,2]
[355722212,1741504246959,-500.0,9.287e-05,2]
[355722213,1741504246969,-500.0,9.287e-05,2]
[355722214,1741504246978,-500.0,9.287e-05,2]
[355722215,1741504246988,-500.0,9.287e-05,2]
[355722216,1741504246997,-500.0,9.287e-05,2]
[355722217,1741504247006,-500.0,9.287e-05,2]
[355722218,1741504247016,-500.0,9.287e-05,2]
[355722219,1741504247025,-500.0,9.287e-05,2]
[355722220,1741504247035,-500.0,9.287e-05,2]
[355722221,1741504247044,-500.0,9.287e-05,2]
[355722222,1741504247053,-500.0,9.287e-05,2]
[355722223,1741504247062,-500.0,9.287e-05,2]
[355722224,1741504247071,-500.0,9.287e-05,2]
[355722225,1741504247081,-500.0,9.287e-05,2]
[355722226,1741504247090,-500.0,9.287e-05,2]
[355722227,1741504247100,-500.0,9.287e-05,2]
[355722228,1741504247109,-500.0,9.287e-05,2]
[355722229,1741504247119,-533.9136824,9.287e-05,2]
[355722230,1741504247129,-500.0,9.287e-05,2]
[355722231,1741504247139,-500.0,9.287e-05,2]
[355722232,1741504247148,-500.0,9.287e-05,2]
[355722233,1741504247157,-500.0,9.287e-05,2]
[355722234,1741504247167,-500.0,9.287e-05,2]
[355722235,1741504247178,-500.0,9.287e-05,2]
[355722236,1741504247188,-500.0,9.287e-05,2]
[355722237,1741504247197,-500.0,9.287e-05,2]
[355722238,1741504247207,-500.0,9.287e-05,2]
[355722239,1741504247216,-500.0,9.287e-05,2]
[355722240,1741504247226,-500.0,9.287e-05,2]
[355722241,1741504247235,-500.0,9.287e-05,2]
[355722242,1741504247244,-500.0,9.287e-05,2]
[355722243,1741504247253,-500.0,9.287e-05,2]
[355722244,1741504247263,-500.0,9.287e-05,2]
[355722245,1741504247272,-500.0,9.287e-05,2]
[355722246,1741504247282,-500.0,9.287e-05,2]
[355722247,1741504247291,-500.0,9.287e-05,2]
[355722248,1741504247300,-500.0,9.287e-05,2]
[355722249,1741504247309,-500.0,9.287e-05,2]
[355722250,1741504247319,-500.0,9.287e-05,2]
[355722251,1741504247328,-500.0,9.287e-05,2]
[355722252,1741504247337,-500.0,9.287e-05,2]
[355722253,1741504247346,-500.0,9.287e-05,2]
[355722254,1741504247355,-500.0,9.287e-05,2]
[355722255,1741504247364,-500.0,9.287e-05,2]
[355722256,1741504247374,-500.0,9.287e-05,2]
[355722257,1741504247383,-500.0,9.287e-05,2]
[355722258,1741504247392,-500.0,9.287e-05,2]
[355722259,1741504247401,-500.0,9.287e-05,2]
[355722260,1741504247410,-500.0,9.287e-05,2]
[355722261,1741504247420,-500.0,9.287e-05,2]
[355722262,1741504247429,-500.0,9.287e-05,2]
[355722263,1741504247438,-500.0,9.287e-05,2]
[355722264,1741504247447,-500.0,9.287e-05,2]
[355722265,1741504247456,-500.0,9.287e-05,2]
[355722266,1741504247465,-500.0,9.287e-05,2]
[355722267,1741504247473,-500.0,9.287e-05,2]
[355722268,1741504247483,-598.4,9.287e-05,2]
[355722269,1741504247492,-500.0,9.287e-05,2]
[355722270,1741504247501,-500.0,9.287e-05,2]
[355722271,1741504247511,-500.0,9.287e-05,2]
[355722272,1741504247520,-500.0,9.287e-05,2]
[355722273,1741504247530,-500.0,9.287e-05,2]
[355722274,1741504247538,-500.0,9.287e-05,2]
[355722275,1741504247548,-500.0,9.287e-05,2]
[355722276,1741504247557,-500.0,9.287e-05,2]
[355722277,1741504247567,-500.0,9.287e-05,2]
[355722278,1741504247576,-500.0,9.287e-05,2]
[355722279,1741504247585,-500.0,9.287e-05,2]
[355722280,1741504247594,-500.0,9.287e-05,2]
[355722281,1741504247603,-458.92057883,9.287e-05,2]
[355722282,1741504247613,-648.93,9.287e-05,2]
[355722283,1741504247622,-500.0,9.287e-05,2]
[355722284,1741504247631,-500.0,9.287e-05,2]
[355722285,1741504247640,-500.0,9.287e-05,2]
[355722286,1741504247650,-500.0,9.287e-05,2]
[355722287,1741504247659,-579.68,9.287e-05,2]
[355722288,1741504247669,-281.42934272,9.287e-05,2]
[355722289,1741504247678,-500.0,9.287e-05,2]
[355722290,1741504247688,-500.0,9.287e-05,2]
[355722291,1741504247697,-500.0,9.287e-05,2]
[355722292,1741504247706,-500.0,9.287e-05,2]
[355722293,1741504247715,-947.75,9.287e-05,2]
[355722294,1741504247725,-500.0,9.287e-05,2]
[355722295,1741504247734,-500.0,9.287e-05,2]
[355722296,1741504247743,-500.0,9.287e-05,2]
[355722297,1741504247752,-500.0,9.287e-05,2]
[355722298,1741504247761,-500.0,9.287e-05,2]
[355722299,1741504247770,-500.0,9.287e-05,2]
[355722300,1741504247779,-500.0,9.287e-05,2]
[355722301,1741504247788,-500.0,9.287e-05,2]
[355722302,1741504247797,-500.0,9.287e-05,2]
[355722303,1741504247807,-500.0,9.287e-05,2]
[355722304,1741504247816,-500.0,9.287e-05,2]
[355722305,1741504247825,-500.0,9.287e-05,2]
[355722306,1741504247835,-500.0,9.287e-05,2]
[355722307,1741504247844,-500.0,9.287e-05,2]
[355722308,1741504247853,-507.79568651,9.287e-05,2]
[355722309,1741504247866,-527.88703121,9.287e-05,2]
[355722310,1741504247875,-500.0,9.287e-05,2]
[355722311,1741504247884,-500.0,9.287e-05,2]
[355722312,1741504247893,-500.0,9.287e-05,2]
[355722313,1741504247903,-500.0,9.287e-05,2]
[355722314,1741504247912,-500.0,9.287e-05,2]
[355722315,1741504247922,-500.0,9.287e-05,2]
[355722316,1741504247931,-500.0,9.287e-05,2]
[355722317,1741504247942,-500.0,9.287e-05,2]
[355722318,1741504247952,-500.0,9.287e-05,2]
[355722319,1741504247961,-500.0,9.287e-05,2]
[355722320,1741504247970,-500.0,9.287e-05,2]
[355722321,1741504247980,-500.0,9.287e-05,2]
[355722322,1741504247989,-500.0,9.287e-05,2]
[355722323,1741504247999,-500.0,9.287e-05,2]
[355722324,1741504248008,-500.0,9.287e-05,2]
[355722325,1741504248018,-500.0,9.287e-05,2]
[355722326,1741504248028,-496.41325954,9.287e-05,2]
[355722327,1741504248038,-500.0,9.287e-05,2]
[355722328,1741504248140,-500.0,9.287e-05,2]
[355722329,1741504248290,-208.48359648,9.287e-05,2]
[355722330,1741504248299,-500.0,9.287e-05,2]
[355722331,1741504248309,-500.0,9.287e-05,2]
[355722332,1741504248318,-500.0,9.287e-05,2]
[355722333,1741504248327,-500.0,9.287e-05,2]
[355722334,1741504248336,-500.0,9.287e-05,2]
[355722335,1741504248346,-500.0,9.287e-05,2]
[355722336,1741504248355,-500.0,9.287e-05,2]
[355722337,1741504248365,-500.0,9.287e-05,2]
[355722338,1741504248374,-500.0,9.287e-05,2]
[355722339,1741504248384,-514.40154226,9.287e-05,2]
[355722340,1741504248393,-500.0,9.287e-05,2]
[355722341,1741504248403,-646.67,9.287e-05,2]
[355722342,1741504248412,-500.0,9.287e-05,2]
[355722343,1741504248421,-481.37941999,9.287e-05,2]
[355722344,1741504248430,-500.0,9.287e-05,2]
[355722345,1741504248439,-500.0,9.287e-05,2]
[355722346,1741504248448,-701.05,9.287e-05,2]
[355722347,1741504248457,-500.0,9.287e-05,2]
[355722348,1741504248467,-500.0,9.287e-05,2]
[355722349,1741504248476,-500.0,9.287e-05,2]
[355722350,1741504248485,-500.0,9.287e-05,2]
[355722351,1741504248495,-500.0,9.287e-05,2]
[355722352,1741504248503,-500.0,9.287e-05,2]
[355722353,1741504248513,-500.0,9.287e-05,2]
[355722354,1741504248522,-500.0,9.287e-05,2]
[355722355,1741504248531,-500.0,9.287e-05,2]
[355722356,1741504248540,-500.0,9.287e-05,2]
[355722357,1741504248550,-500.0,9.287e-05,2]
[355722358,1741504248559,-500.0,9.287e-05,2]
[355722359,1741504248569,-503.57146997,9.287e-05,2]
[355722360,1741504248578,-500.0,9.287e-05,2]
[355722361,1741504248588,-500.0,9.287e-05,2]
[355722362,1741504248597,-500.0,9.287e-05,2]
[355722363,1741504248607,-523.85,9.287e-05,2]
[355722364,1741504248616,-500.0,9.287e-05,2]
[355722365,1741504248626,-500.0,9.287e-05,2]
[355722366,1741504248635,-535.02,9.287e-05,2]
[355722367,1741504248644,-500.0,9.287e-05,2]
[355722368,1741504248654,-503.99,9.287e-05,2]
[355722369,1741504248663,-519.91737121,9.287e-05,2]
[355722370,1741504248672,-664.1,9.287e-05,2]
[355722371,1741504248682,-500.0,9.287e-05,2]
[355722372,1741504248691,-500.0,9.287e-05,2]
[355722373,1741504248700,-500.0,9.287e-05,2]
[355722374,1741504248710,-500.0,9.287e-05,2]
[355722375,1741504248719,-575.5133449,9.287e-05,2]
[355722376,1741504248729,-500.0,9.287e-05,2]
[355722377,1741504248738,-708.18,9.287e-05,2]
[355722378,1741504248747,-901.04,9.287e-05,2]
[355722379,1741504248757,-500.0,9.287e-05,2]
[355722380,1741504248766,-500.0,9.287e-05,2]
[355722381,1741504248776,-500.0,9.287e-05,2]
[355722382,1741504248785,-500.0,9.287e-05,2]
[355722383,1741504248794,-1343.0,9.287e-05,2]
[355722384,1741504248804,-500.0,9.287e-05,2]
[355722385,1741504248813,-500.0,9.287e-05,2]
[355722386,1741504248822,-963.68,9.287e-05,2]
[355722387,1741504248831,-500.0,9.287e-05,2]
[355722388,1741504248841,-464.55641617,9.287e-05,2]
[355722389,1741504248851,-849.183523,9.287e-05,2]
[355722390,1741504249170,-799.07,9.286e-05,2]
[355722391,1741504249181,-245.306477,9.287e-05,2]
[355722392,1741504249192,-500.0,9.287e-05,2]
[355722393,1741504249206,-500.0,9.287e-05,2]
[355722394,1741504249215,-121.03265662,9.287e-05,2]
[355722395,1741504249233,-2359.91734338,9.287e-05,2]
[355722396,1741504249242,-229.08134034,9.287e-05,2]
[355722397,1741504249299,-270.91865966,9.287e-05,2]
[355722398,1741504249309,-500.0,9.287e-05,2]
[355722399,1741504249319,-500.0,9.287e-05,2]
[355722400,1741504249328,-587.27,9.287e-05,2]
[355722401,1741504249338,-500.0,9.287e-05,2]
[355722402,1741504249347,-510.4,9.287e-05,2]
[355722403,1741504249357,-500.0,9.287e-05,2]
[355722404,1741504249366,-1743.43,9.287e-05,2]
[355722405,1741504249376,-500.0,9.287e-05,2]
[355722406,1741504249386,-867.75,9.287e-05,2]
[355722407,1741504249395,-1272.43,9.287e-05,2]
[355722408,1741504249405,-500.0,9.287e-05,2]
[355722409,1741504249415,-828.12,9.287e-05,2]
[355722410,1741504249424,-509.20034272,9.287e-05,2]
[355722411,1741504249434,-502.01895535,9.287e-05,2]
[355722412,1741504249443,-500.0,9.287e-05,2]
[355722413,1741504249452,-958.2,9.287e-05,2]
[355722414,1741504249461,-630.53584319,9.287e-05,2]
[355722415,1741504249471,-500.0,9.287e-05,2]
[355722416,1741504249480,-516.0696241,9.287e-05,2]
[355722417,1741504249489,-990.52,9.287e-05,2]
[355722418,1741504249499,-1222.97,9.287e-05,2]
[355722419,1741504249508,-500.0,9.287e-05,2]
[355722420,1741504249517,-510.49536016,9.287e-05,2]
[355722421,1741504249526,-514.70824211,9.287e-05,2]
[355722422,1741504249535,-2024.8,9.287e-05,2]
[355722423,1741504249545,-2062.97,9.287e-05,2]
[355722424,1741504249555,-563.54113685,9.287e-05,2]
[355722425,1741504249564,-509.65153301,9.287e-05,2]
[355722426,1741504249574,-4565.02759216,9.287e-05,2]
[355722429,1741504338147,-345.92779086,8.167e-05,2]
[355722440,1741504827400,-359.33269334,8.128e-05,2]
[355722442,1741504946127,-1698.68,8.105e-05,2]
[355722447,1741505035114,-479.5,8.09e-05,2]
[355722448,1741505035144,-338.88,8.105e-05,2]
[355722449,1741505035170,-4268.30730666,8.128e-05,2]
[355722450,1741505035196,-247.91,8.142e-05,2]
[355722451,1741505035223,-490.7794,8.156e-05,2]
[355722452,1741505035248,-1980.29,8.16e-05,2]
[355722453,1741505036953,194.33329334,8.062e-05,2]
[355722454,1741505036978,97.31670666,8.062e-05,2]
[355722455,1741505039163,23900.0,8.062e-05,2]
[355722540,1741505378282,-1143.6,8.144e-05,2]
[355722541,1741505378307,-176.41,8.144e-05,2]
[355722542,1741505378333,-237.89,8.219e-05,2]
[355722543,1741505378357,-1977.87,8.219e-05,2]
[355722544,1741505378380,-1000.0,8.219e-05,2]
[355722545,1741505378407,-160.7,8.219e-05,2]
[355722546,1741505378431,-1112.58105163,8.246e-05,2]
[355722547,1741505378456,-150.0,8.255e-05,2]
[355722548,1741505378479,-38040.94894837,8.256e-05,2]
[355722549,1741505404023,-2000.0,8.154e-05,2]
[355722554,1741505426496,-10700.0,8.256e-05,2]
[355722563,1741505431937,-26560.48105163,8.256e-05,2]
[355722564,1741505431950,-250.0,8.301e-05,2]
[355722565,1741505431959,-171.54,8.386e-05,2]
[355722566,1741505431968,-265.6128897,8.429e-05,7]
[355722567,1741505431978,-588.74195976,8.493e-05,2]
[355722568,1741505431987,-250.0,8.943e-05,2]
[355722569,1741505431997,-150.0,9.029e-05,2]
[355722570,1741505432006,-150.0,9.036e-05,2]
[355722571,1741505432015,-150.0,9.063e-05,2]
[355722572,1741505432024,-150.0,9.063e-05,2]
[355722573,1741505432033,-1000.0,9.064e-05,2]
[355722574,1741505432043,-1000.0,9.067e-05,2]
[355722575,1741505432052,-150.0,9.069e-05,2]
[355722576,1741505432061,-150.0,9.071e-05,2]
[355722577,1741505432071,-150.0,9.071e-05,2]
[355722578,1741505432081,-150.0,9.071e-05,2]
[355722579,1741505432090,-150.0,9.073e-05,2]
[355722580,1741505432099,-150.0,9.075e-05,2]
[355722581,1741505432108,-150.0,9.075e-05,2]
[355722582,1741505432117,-150.0,9.076e-05,2]
[355722583,1741505432128,-1000.0,9.076e-05,2]
[355722584,1741505432137,-150.0,9.076e-05,2]
[355722585,1741505432147,-150.0,9.078e-05,2]
[355722586,1741505432157,-150.0,9.082e-05,2]
[355722587,1741505432167,-150.0,9.083e-05,2]
[355722588,1741505432176,-150.95478258,9.087e-05,2]
[355722589,1741505432185,-11828.2856,9.088e-05,2]
[355722590,1741505432195,-1000.0,9.088e-05,2]
[355722591,1741505432204,-150.0,9.088e-05,2]
[355722592,1741505432213,-1000.0,9.091e-05,2]
[355722593,1741505432223,-1000.0,9.093e-05,2]
[355722594,1741505432232,-150.0,9.098e-05,2]
[355722595,1741505432242,-150.0,9.099e-05,2]
[355722596,1741505432251,-150.0,9.099e-05,2]
[355722597,1741505432260,-479.5,9.101e-05,2]
[355722598,1741505432270,-150.0,9.103e-05,2]
[355722599,1741505432279,-1000.0,9.103e-05,2]
[355722600,1741505432289,-1000.0,9.104e-05,2]
[355722601,1741505432299,-150.0,9.116e-05,2]
[355722602,1741505432309,-150.0,9.118e-05,2]
[355722603,1741505432318,-150.0,9.123e-05,2]
[355722604,1741505432328,-1000.0,9.124e-05,2]
[355722605,1741505432337,-150.0,9.126e-05,2]
[355722607,1741505432347,-150.0,9.13e-05,2]
[355722608,1741505432357,-150.0,9.134e-05,2]
[355722610,1741505432367,-150.0,9.135e-05,2]
[355722612,1741505432378,-150.0,9.135e-05,2]
[355722614,1741505432388,-150.0,9.137e-05,2]
[355722616,1741505432397,-151.56021208,9.141e-05,2]
[355722618,1741505432406,-150.0,9.147e-05,2]
[355722620,1741505432419,-150.0,9.148e-05,2]
[355722622,1741505432428,-150.0,9.15e-05,2]
[355722624,1741505432437,-150.0,9.151e-05,2]
[355722626,1741505432447,-150.0,9.153e-05,2]
[355722628,1741505432455,-150.0,9.156e-05,2]
[355722630,1741505432466,-1000.0,9.16e-05,2]